[Event "GER-ch Youth-U14 2022"]
[Site "Willingen"]
[Date "2022.06.11"]
[Round "9.18"]
[White "Eichhorn, Valentin"]
[Black "Sinka, Silas"]
[Result "0-1"]
[ECO "D05"]
[WhiteElo "1565"]
[BlackElo "1386"]
[Annotator "NA RC COMBH"]
[PlyCount "78"]
[EventDate "2022.06.05"]
[EventType "swiss"]
[EventRounds "9"]
[EventCountry "GER"]
[SourceTitle "playchess.com"]
[Source "ChessBase"]
[SourceQuality "1"]
[TimeControl "40/4500+30:900+30"]

1. d4 {[%emt 0:00:00]} d5 {[%emt 0:00:00]} 2. Nf3 {[%emt 0:00:00]} Nf6 {[%emt 0:00:00]} 3. e3 {[%emt 0:00:00]} e6 {[%emt 0:00:00]} 4. Bd3 {[%emt 0:00:00]} Bd6 5. O-O {[%emt 0:00:00]} O-O {[%emt 0:00:00]} 6. b3 {[%emt 0:00:00]} b6 {[%emt 0:00:00]} 7. Bb2 {[%emt 0:00:00]} Bb7 {[%emt 0:00:00]} 8. Nbd2 {[%emt 0:00:00]} Nbd7 {[%emt 0:00:00]} 9. Ne5 {[%emt 0:00:00]} c5 {[%emt 0:00:00]} 10. f4 {[%emt 0:00:00]} Ne4 {[%emt 0:00:00]} 11. Bxe4 {[%emt 0:15:35]} dxe4 {[%emt 0:00:00]} 12. Qg4 {[%emt 0:01:44]} Nf6 {[%emt 0:01:24]} 13. Qg3 {[%emt 0:04:03]} Rc8 {[%emt 0:05:11]} 14. Ndc4 {[%emt 0:11:06]} cxd4 {[%emt 0:01:01]} 15. Nxd6 {[%emt 0:13:17]} Qxd6 {[%emt 0:00:27]} 16. Nc4 {[%emt 0:01:25]} Qe7 {[%emt 0:01:57]} 17. Ba3 {[%emt 0:01:24]} Qd8 {[%emt 0:02:14]} 18. Bxf8 {[%emt 0:04:53]} Kxf8 {[%emt 0:00:26]} 19. Rad1 {[%emt 0:00:59]} d3 {[%emt 0:00:30]} 20. cxd3 {[%emt 0:01:49]} exd3 {[%emt 0:00:07]} 21. Qe1 {[%emt 0:01:26]} Ne4 {[%emt 0:00:55]} 22. Qb4+ {[%emt 0:02:48]} Kg8 {[%emt 0:01:12]} 23. Nb2 {[%emt 0:05:24]} d2 {[%emt 0:08:25]} 24. Qd4 {[%emt 0:13:18]} Qxd4 {[%emt 0:00:28]} 25. exd4 {[%emt 0:00:07]} Ba6 {[%emt 0:00:22]} 26. Nc4 {[%emt 0:01:11]} Bxc4 {[%emt 0:00:19]} 27. bxc4 {[%emt 0:00:17]} Rxc4 {[%emt 0:00:04]} 28. f5 {[%emt 0:00:34]} Rc2 {[%emt 0:00:41]} 29. Ra1 {[%emt 0:00:55]} Nc3 {[%emt 0:00:18]} 30. fxe6 {[%emt 0:00:24]} fxe6 {[%emt 0:00:06]} 31. h3 {[%emt 0:00:35]} Rc1 {[%emt 0:00:18]} 32. Raxc1 dxc1=Q {[%emt 0:00:08]} 33. Rxc1 {[%emt 0:01:28]} Ne2+ {[%emt 0:00:09]} 34. Kf2 {[%emt 0:00:05]} Nxc1 {[%emt 0:00:03]} 35. Ke3 {[%emt 0:00:21]} Nxa2 {[%emt 0:00:12]} 36. Ke4 {[%emt 0:00:08]} Nb4 {[%emt 0:00:04]} 37. Ke5 {[%emt 0:00:10]} Nc6+ {[%emt 0:00:05]} 38. Kxe6 {[%emt 0:00:07]} Nxd4+ {[%emt 0:00:05]} 39. Kd5 {[%emt 0:00:33]} Ne2 {[%emt 0:00:14]} 0-1

[Event "GER-ch Youth-U14 2022"]
[Site "Willingen"]
[Date "2022.06.11"]
[Round "9.19"]
[White "Shapiro, Danil"]
[Black "Goldinov, Daniel"]
[Result "0-1"]
[ECO "B01"]
[WhiteElo "1468"]
[BlackElo "1626"]
[Annotator "NA RC COMBH"]
[PlyCount "97"]
[EventDate "2022.06.05"]
[EventType "swiss"]
[EventRounds "9"]
[EventCountry "GER"]
[SourceTitle "playchess.com"]
[Source "ChessBase"]
[SourceQuality "1"]
[TimeControl "40/4500+30:900+30"]

1. e4 {[%emt 0:00:00]} d5 {[%emt 0:00:00]} 2. exd5 {[%emt 0:00:00]} Nf6 {[%emt 0:00:00]} 3. Nc3 {[%emt 0:00:00]} Nxd5 {[%emt 0:00:00]} 4. Bc4 {[%emt 0:00:00]} c6 {[%emt 0:02:04]} 5. Nf3 {[%emt 0:00:00]} Bg4 {[%emt 0:01:33]} 6. h3 {[%emt 0:00:00]} Bh5 {[%emt 0:01:49]} 7. Nxd5 {[%emt 0:00:00]} cxd5 {[%emt 0:00:59]} 8. Bb5+ {[%emt 0:00:00]} Nc6 {[%emt 0:00:56]} 9. O-O {[%emt 0:00:00]} e6 {[%emt 0:03:42]} 10. d4 {[%emt 0:02:52]} Bd6 {[%emt 0:06:17]} 11. c3 {[%emt 0:01:54]} O-O {[%emt 0:01:33]} 12. Rb1 {[%emt 0:10:13]} a6 13. Bd3 {[%emt 0:01:29]} b5 {[%emt 0:26:09]} 14. g4 {[%emt 0:00:54]} Bg6 {[%emt 0:01:37]} 15. Bxg6 {[%emt 0:00:03]} hxg6 16. Bd2 e5 {[%emt 0:11:08]} 17. dxe5 {[%emt 0:02:38]} Nxe5 {[%emt 0:00:43]} 18. Bf4 {[%emt 0:00:08]} Nxf3+ {[%emt 0:00:33]} 19. Qxf3 {[%emt 0:00:06]} Qf6 {[%emt 0:00:39]} 20. Qxd5 {[%emt 0:02:16]} Qxf4 {[%emt 0:00:25]} 21. Qg2 {[%emt 0:00:15]} Rfe8 {[%emt 0:01:37]} 22. Rbd1 {[%emt 0:00:05]} Rad8 {[%emt 0:00:51]} 23. Rd4 {[%emt 0:00:17]} Qe5 {[%emt 0:02:52]} 24. Rd5 {[%emt 0:01:58]} Qe6 {[%emt 0:00:48]} 25. Rfd1 {[%emt 0:02:00]} Qxd5 {[%emt 0:03:29]} 26. Qxd5 {[%emt 0:00:38]} Bh2+ {[%emt 0:00:45]} 27. Kxh2 {[%emt 0:00:30]} Rxd5 {[%emt 0:00:04]} 28. Rxd5 {[%emt 0:00:08]} Re2 {[%emt 0:00:23]} 29. Rd8+ {[%emt 0:00:10]} Kh7 {[%emt 0:00:14]} 30. Ra8 {[%emt 0:00:16]} Rxf2+ {[%emt 0:00:13]} 31. Kg3 {[%emt 0:00:05]} Rxb2 {[%emt 0:00:09]} 32. Rxa6 {[%emt 0:00:04]} Rc2 {[%emt 0:01:01]} 33. Rc6 {[%emt 0:04:52]} Rxa2 {[%emt 0:06:54]} 34. Rc5 {[%emt 0:00:29]} Ra3 {[%emt 0:01:14]} 35. Rxb5 {[%emt 0:00:22]} Rxc3+ {[%emt 0:00:11]} 36. Kg2 {[%emt 0:00:04]} Re3 {[%emt 0:04:18]} 37. Rb7 {[%emt 0:00:41]} f6 {[%emt 0:01:28]} 38. Rb8 {[%emt 0:05:52]} g5 {[%emt 0:01:15]} 39. Rf8 {[%emt 0:08:32]} Re7 {[%emt 0:00:51]} 40. Kf3 {[%emt 0:04:27]} Kg6 {[%emt 0:01:59]} 41. Kg3 {[%emt 0:15:05]} Rf7 {[%emt 0:15:25]} 42. Ra8 {[%emt 0:00:27]} Kh7 {[%emt 0:00:29]} 43. h4 {[%emt 0:05:40]} gxh4+ {[%emt 0:01:30]} 44. Kxh4 {[%emt 0:00:03]} Kg6 {[%emt 0:01:07]} 45. Ra6 {[%emt 0:01:05]} Re7 {[%emt 0:01:00]} 46. Rb6 {[%emt 0:00:34]} Re3 {[%emt 0:01:03]} 47. Rb5 {[%emt 0:01:37]} Kh7 {[%emt 0:00:00]} 48. Rh5+ Kg8 49. Ra5 0-1

[Event "GER-ch Youth-U14 2022"]
[Site "Willingen"]
[Date "2022.06.11"]
[Round "9.20"]
[White "Mainka, Ingmar"]
[Black "Goepfert, Gregor"]
[Result "0-1"]
[ECO "C54"]
[WhiteElo "1427"]
[BlackElo "1446"]
[Annotator "NA RC COMBH"]
[PlyCount "66"]
[EventDate "2022.06.05"]
[EventType "swiss"]
[EventRounds "9"]
[EventCountry "GER"]
[SourceTitle "playchess.com"]
[Source "ChessBase"]
[SourceQuality "1"]
[TimeControl "40/4500+30:900+30"]

1. e4 {[%emt 0:00:00]} e5 {[%emt 0:00:00]} 2. Nf3 {[%emt 0:00:00]} Nc6 {[%emt 0:00:00]} 3. Bc4 {[%emt 0:00:00]} Bc5 {[%emt 0:00:00]} 4. c3 {[%emt 0:00:00]} Nf6 {[%emt 0:00:00]} 5. d3 {[%emt 0:00:00]} d6 {[%emt 0:00:00]} 6. Bb3 {[%emt 0:00:00]} a6 {[%emt 0:00:00]} 7. Nbd2 {[%emt 0:00:00]} Ba7 {[%emt 0:00:00]} 8. Nf1 {[%emt 0:00:00]} d5 {[%emt 0:00:00]} 9. Qe2 {[%emt 0:00:00]} O-O {[%emt 0:00:00]} 10. Bc2 {[%emt 0:00:00]} Re8 {[%emt 0:00:00]} 11. h3 {[%emt 0:00:00]} Be6 {[%emt 0:00:00]} 12. Ng3 {[%emt 0:00:00]} Qd6 {[%emt 0:02:55]} 13. Nh4 {[%emt 0:00:00]} Ne7 {[%emt 0:02:13]} 14. Bg5 {[%emt 0:00:00]} Nd7 {[%emt 0:03:26]} 15. Nhf5 {[%emt 0:11:37]} Bxf5 {[%emt 0:00:29]} 16. Nxf5 {[%emt 0:13:23]} Nxf5 {[%emt 0:00:14]} 17. exf5 {[%emt 0:00:07]} h6 {[%emt 0:11:10]} 18. Bd2 {[%emt 0:01:22]} Nf6 {[%emt 0:04:46]} 19. O-O-O {[%emt 0:06:49]} b5 {[%emt 0:02:50]} 20. g4 {[%emt 0:00:41]} d4 {[%emt 0:07:41]} 21. cxd4 {[%emt 0:06:38]} Bxd4 {[%emt 0:04:01]} 22. g5 {[%emt 0:01:57]} hxg5 {[%emt 0:04:35]} 23. Bxg5 {[%emt 0:00:16]} a5 {[%emt 0:04:42]} 24. Rhg1 {[%emt 0:16:42]} Reb8 {[%emt 0:10:37]} 25. Bh6 {[%emt 0:03:58]} Ne8 {[%emt 0:01:10]} 26. Qh5 {[%emt 0:02:02]} a4 {[%emt 0:07:13]} 27. Rxg7+ {[%emt 0:02:45]} Nxg7 {[%emt 0:00:19]} 28. Rg1 {[%emt 0:00:14]} e4 {[%emt 0:01:08]} 29. Bxg7 {[%emt 0:01:30]} Qf4+ {[%emt 0:01:00]} 30. Kd1 {[%emt 0:01:50]} Bxg7 {[%emt 0:00:41]} 31. Rg4 {[%emt 0:00:42]} Qe5 {[%emt 0:01:47]} 32. Qh6 {[%emt 0:04:46]} Rb6 {[%emt 0:00:39]} 33. f6 {[%emt 0:00:23]} Qxf6 {[%emt 0:00:21]} 0-1

[Event "GER-ch Youth-U14 2022"]
[Site "Willingen"]
[Date "2022.06.11"]
[Round "9.21"]
[White "Detjen, Mattes"]
[Black "Miller, Elias"]
[Result "0-1"]
[ECO "C02"]
[WhiteElo "1098"]
[BlackElo "1548"]
[Annotator "NA RC COMBH"]
[PlyCount "97"]
[EventDate "2022.06.05"]
[EventType "swiss"]
[EventRounds "9"]
[EventCountry "GER"]
[SourceTitle "playchess.com"]
[Source "ChessBase"]
[SourceQuality "1"]
[TimeControl "40/4500+30:900+30"]

1. e4 {[%emt 0:00:00]} e6 {[%emt 0:00:00]} 2. d4 {[%emt 0:00:00]} d5 {[%emt 0:00:00]} 3. e5 {[%emt 0:00:00]} c5 {[%emt 0:00:00]} 4. c3 {[%emt 0:00:00]} Nc6 {[%emt 0:00:00]} 5. Nf3 {[%emt 0:00:00]} Bd7 {[%emt 0:00:00]} 6. Be2 {[%emt 0:00:00]} Nge7 {[%emt 0:00:00]} 7. O-O {[%emt 0:00:00]} Nf5 {[%emt 0:00:00]} 8. a3 {[%emt 0:00:00]} c4 {[%emt 0:06:57]} 9. Bg5 {[%emt 0:06:21]} f6 {[%emt 0:09:14]} 10. exf6 {[%emt 0:06:41]} gxf6 {[%emt 0:00:08]} 11. Bf4 {[%emt 0:00:20]} Qb6 {[%emt 0:06:09]} 12. Qc2 {[%emt 0:06:47]} O-O-O {[%emt 0:02:07]} 13. Nbd2 {[%emt 0:01:48]} Na5 {[%emt 0:03:21]} 14. Rfb1 {[%emt 0:01:36]} Nb3 {[%emt 0:01:32]} 15. Nxb3 {[%emt 0:00:51]} Ba4 {[%emt 0:01:00]} 16. Qd2 {[%emt 0:03:31]} Bxb3 {[%emt 0:00:13]} 17. Bd1 {[%emt 0:02:20]} Bd6 {[%emt 0:15:24]} 18. Bxd6 {[%emt 0:02:18]} Rxd6 {[%emt 0:00:52]} 19. Bxb3 {[%emt 0:02:20]} Qxb3 {[%emt 0:00:06]} 20. a4 {[%emt 0:06:23]} Qb6 {[%emt 0:08:14]} 21. Qc2 {[%emt 0:04:21]} Qa5 {[%emt 0:02:30]} 22. b4 {[%emt 0:04:25]} Qc7 {[%emt 0:00:58]} 23. a5 {[%emt 0:02:46]} Qg7 {[%emt 0:01:09]} 24. Re1 {[%emt 0:03:31]} Rg8 {[%emt 0:01:18]} 25. g3 {[%emt 0:00:23]} Qg4 {[%emt 0:01:11]} 26. Qe2 {[%emt 0:01:25]} h5 {[%emt 0:02:10]} 27. Kh1 {[%emt 0:07:25]} Qg6 {[%emt 0:10:44]} 28. Rg1 {[%emt 0:01:55]} Qf7 {[%emt 0:08:38]} 29. Rae1 {[%emt 0:01:40]} Rg4 {[%emt 0:01:54]} 30. h3 {[%emt 0:01:59]} Rg8 {[%emt 0:00:53]} 31. Qd2 {[%emt 0:00:57]} Rd7 {[%emt 0:00:39]} 32. Qe2 {[%emt 0:00:23]} Re7 {[%emt 0:00:24]} 33. Kg2 {[%emt 0:03:12]} Rg7 {[%emt 0:01:06]} 34. Kf1 {[%emt 0:00:21]} Nd6 {[%emt 0:00:41]} 35. Qe3 {[%emt 0:01:42]} Ne4 {[%emt 0:00:13]} 36. Nd2 {[%emt 0:01:33]} Nd6 {[%emt 0:00:38]} 37. Qf4 {[%emt 0:00:51]} Nb5 {[%emt 0:00:26]} 38. Qe3 {[%emt 0:00:28]} Qg6 {[%emt 0:00:11]} 39. Nf3 {[%emt 0:00:55]} Qf5 {[%emt 0:00:48]} 40. h4 {[%emt 0:01:11]} Kd7 {[%emt 0:00:30]} 41. Rc1 {[%emt 0:16:31]} Rg4 {[%emt 0:16:41]} 42. Nh2 {[%emt 0:01:40]} Rg8 {[%emt 0:00:00]} 43. Qf3 {[%emt 0:00:00]} Qg6 {[%emt 0:00:00]} 44. Qe3 {[%emt 0:00:00]} Qe8 {[%emt 0:00:00]} 45. Qf3 {[%emt 0:00:00]} Qf7 {[%emt 0:00:00]} 46. Kg2 {[%emt 0:00:00]} Nd6 {[%emt 0:00:00]} 47. Rce1 {[%emt 0:00:00]} Qg6 {[%emt 0:00:00]} 48. Re3 {[%emt 0:00:00]} Nf5 {[%emt 0:00:00]} 49. Ng4 0-1

[Event "GER-ch Youth-U14 2022"]
[Site "Willingen"]
[Date "2022.06.11"]
[Round "9.22"]
[White "Linnemann, Caspar"]
[Black "Grundmann, Max"]
[Result "1-0"]
[ECO "B60"]
[WhiteElo "1720"]
[BlackElo "1358"]
[Annotator "NA RC COMBH"]
[PlyCount "87"]
[EventDate "2022.06.05"]
[EventType "swiss"]
[EventRounds "9"]
[EventCountry "GER"]
[SourceTitle "playchess.com"]
[Source "ChessBase"]
[SourceQuality "1"]
[TimeControl "40/4500+30:900+30"]

1. e4 {[%emt 0:00:00]} c5 {[%emt 0:00:00]} 2. Nf3 {[%emt 0:00:00]} Nc6 {[%emt 0:00:00]} 3. d4 {[%emt 0:00:00]} cxd4 {[%emt 0:00:00]} 4. Nxd4 {[%emt 0:00:00]} Nf6 {[%emt 0:00:00]} 5. Nc3 {[%emt 0:00:00]} d6 {[%emt 0:00:00]} 6. Bg5 {[%emt 0:00:00]} Qb6 {[%emt 0:00:00]} 7. Nb3 {[%emt 0:00:00]} Ng4 {[%emt 0:00:00]} 8. Qd2 {[%emt 0:00:00]} Be6 {[%emt 0:00:00]} 9. f3 {[%emt 0:00:00]} Nge5 {[%emt 0:04:12]} 10. Be3 {[%emt 0:00:59]} Qc7 {[%emt 0:02:08]} 11. Nd5 {[%emt 0:06:26]} Bxd5 {[%emt 0:04:39]} 12. exd5 {[%emt 0:00:14]} Nb8 {[%emt 0:01:33]} 13. Be2 {[%emt 0:06:24]} g6 {[%emt 0:00:59]} 14. Bd4 {[%emt 0:02:32]} Rg8 {[%emt 0:05:13]} 15. O-O-O {[%emt 0:07:22]} Bg7 {[%emt 0:00:59]} 16. f4 {[%emt 0:02:18]} Nc4 {[%emt 0:02:20]} 17. Qc3 {[%emt 0:00:31]} Bxd4 {[%emt 0:03:03]} 18. Rxd4 {[%emt 0:00:15]} Nd7 {[%emt 0:07:53]} 19. Rxc4 {[%emt 0:02:04]} Qd8 {[%emt 0:01:39]} 20. Bg4 {[%emt 0:06:46]} f5 {[%emt 0:01:06]} 21. Bf3 {[%emt 0:00:43]} Nb6 {[%emt 0:00:13]} 22. Rd4 {[%emt 0:01:11]} Rc8 {[%emt 0:00:40]} 23. Qd2 {[%emt 0:04:27]} Nc4 {[%emt 0:03:12]} 24. Qe2 {[%emt 0:01:20]} Qc7 {[%emt 0:04:26]} 25. Re1 {[%emt 0:10:16]} Rg7 {[%emt 0:01:37]} 26. Qd3 {[%emt 0:08:30]} Na5 {[%emt 0:04:19]} 27. Kb1 {[%emt 0:05:00]} Nxb3 {[%emt 0:00:35]} 28. axb3 {[%emt 0:01:21]} Kf8 {[%emt 0:01:39]} 29. Rc4 {[%emt 0:01:09]} Qd7 {[%emt 0:00:45]} 30. Rxc8+ {[%emt 0:01:00]} Qxc8 31. Qc4 {[%emt 0:01:07]} Qc5 {[%emt 0:06:00]} 32. Qxc5 {[%emt 0:00:37]} dxc5 {[%emt 0:00:31]} 33. Rd1 {[%emt 0:00:09]} b6 {[%emt 0:00:18]} 34. d6 {[%emt 0:00:18]} exd6 {[%emt 0:01:10]} 35. Rxd6 {[%emt 0:00:07]} Ke7 {[%emt 0:00:40]} 36. Rd3 {[%emt 0:03:24]} Rf7 {[%emt 0:03:58]} 37. Kc1 {[%emt 0:04:40]} Rf6 {[%emt 0:00:12]} 38. Kd2 {[%emt 0:00:22]} Rd6 {[%emt 0:02:53]} 39. Rxd6 {[%emt 0:01:07]} Kxd6 {[%emt 0:00:07]} 40. Kc3 {[%emt 0:00:56]} h6 {[%emt 0:00:22]} 41. h4 {[%emt 0:17:20]} a6 {[%emt 0:16:10]} 42. Bb7 {[%emt 0:00:23]} a5 {[%emt 0:01:42]} 43. Kc4 {[%emt 0:00:10]} Kc7 {[%emt 0:00:57]} 44. Bd5 1-0